lending/lending_fUSD_20250719
["ID","MTS","AMOUNT","RATE_DAILY","PERIOD"]
[373213430,1752907863994,-480.0,0.00020712,2]
[373213432,1752907864004,-480.0,0.00020712,2]
[373213435,1752907864014,-615.64,0.00020712,2]
[373213437,1752907864024,-480.0,0.00020712,2]
[373213438,1752907864033,-507.11,0.00020712,2]
[373213440,1752907864043,-1223.95,0.00020712,2]
[373213442,1752907864053,-798.17,0.00020712,2]
[373213445,1752907864063,-725.13,0.00020712,2]
[373213447,1752907864073,-1220.62,0.00020712,2]
[373213449,1752907864083,-965.98,0.00020712,2]
[373213451,1752907864094,-480.0,0.00020712,2]
[373213453,1752907864103,-7391.1,0.00020712,2]
[373213455,1752907864114,-561.57,0.00020712,2]
[373213457,1752907864125,-996.17,0.00020712,2]
[373213459,1752907864134,-875.35,0.00020712,2]
[373213468,1752907864144,-480.0,0.00020712,2]
[373213470,1752907864219,-152.6150827,0.00020718,2]
[373213472,1752907864235,-2508.37,0.00020719,2]
[373213474,1752907864246,-168.84017696,0.00020742,2]
[373213476,1752907864255,-674.0,0.00020743,2]
[373213478,1752907864264,-450.0,0.00020743,2]
[373213480,1752907864273,-2689.0,0.00020743,2]
[373213482,1752907864283,-300.0,0.00020743,2]
[373213484,1752907864292,-500.0,0.00020744,2]
[373213486,1752907864302,-10399.999999,0.00020748,2]
[373213488,1752907864312,-249.27840005,0.0002075,2]
[373213490,1752907864322,-150.0,0.00020751,2]
[373213492,1752907864332,-150.0,0.00020772,2]
[373213494,1752907864341,-1000.0,0.00020775,2]
[373213496,1752907864350,-159.97,0.00020785,2]
[373213498,1752907864359,-21765.52518711,0.000208,2]
[373213500,1752907864370,-1501.73766653,0.000208,3]
[373213502,1752907864379,-1798.11,0.000208,2]
[373213503,1752907864389,-212.0,0.000208,2]
[373213506,1752907864399,-314.7242244,0.000208,2]
[373213508,1752907864409,-1201.35,0.00020821,2]
[373213509,1752907864418,-654.73,0.00020821,2]
[373213512,1752907864428,-480.0,0.00020821,2]
[373213514,1752907864437,-480.0,0.00020821,2]
[373213516,1752907864447,-597.85,0.00020821,2]
[373213518,1752907864457,-562.6,0.00020821,2]
[373213519,1752907864466,-494.6,0.00020821,2]
[373213522,1752907864475,-489.56030434,0.00020821,2]
[373213524,1752907864484,-801.31,0.00020821,2]
[373213525,1752907864495,-614.38,0.00020821,2]
[373213527,1752907864505,-480.0,0.00020821,2]
[373213528,1752907864514,-565.24,0.00020821,2]
[373213529,1752907864523,-480.0,0.00020821,2]
[373213530,1752907864532,-1259.57,0.00020821,2]
[373213531,1752907864541,-480.0,0.00020821,2]
[373213532,1752907864551,-921.82,0.00020821,2]
[373213533,1752907864560,-449.74133978,0.00020821,2]
[373213534,1752907864570,-480.0,0.00020821,2]
[373213536,1752907864579,-573.09,0.00020821,2]
[373213537,1752907864588,-1365.62,0.00020821,2]
[373213540,1752907864598,-577.37,0.00020821,2]
[373213542,1752907864609,-827.19,0.00020821,2]
[373213543,1752907864619,-581.07,0.00020821,2]
[373213545,1752907864628,-4441.88,0.00020821,2]
[373213547,1752907864638,-637.96,0.00020821,2]
[373213549,1752907864647,-584.34,0.00020821,2]
[373213552,1752907864657,-566.64,0.00020821,2]
[373213553,1752907864666,-791.99,0.00020821,2]
[373213555,1752907864676,-897.36,0.00020821,2]
[373213558,1752907864687,-1259.05,0.00020821,2]
[373213560,1752907864697,-521.13161089,0.00020821,2]
[373213562,1752907864707,-1164.26,0.00020821,2]
[373213564,1752907864717,-480.0,0.00020821,2]
[373213566,1752907864727,-1795.43,0.00020821,2]
[373213568,1752907864736,-480.0,0.00020821,2]
[373213569,1752907864745,-669.7,0.00020821,2]
[373213570,1752907864754,-540.38,0.00020821,2]
[373213571,1752907864763,-1011.37,0.00020821,2]
[373213572,1752907864771,-186.29758982,0.00020821,2]
[373213573,1752907864780,-480.0,0.00020821,2]
[373213574,1752907864789,-480.0,0.00020821,2]
[373213575,1752907864802,-632.89,0.00020821,2]
[373213576,1752907864815,-1288.17,0.00020821,2]
[373213577,1752907864824,-835.27,0.00020821,2]
[373213578,1752907864833,-631.07,0.00020821,2]
[373213579,1752907864842,-536.6,0.00020821,2]
[373213580,1752907864852,-480.0,0.00020821,2]
[373213581,1752907864861,-480.0,0.00020821,2]
[373213582,1752907864871,-480.0,0.00020821,2]
[373213583,1752907864880,-571.22,0.00020821,2]
[373213584,1752907864889,-480.0,0.00020821,2]
[373213585,1752907864899,-499.34,0.00020821,2]
[373213586,1752907864908,-480.0,0.00020821,2]
[373213588,1752907864918,-615.64,0.00020821,2]
[373213589,1752907864927,-480.0,0.00020821,2]
[373213590,1752907864937,-507.11,0.00020821,2]
[373213591,1752907864946,-1223.95,0.00020821,2]
[373213592,1752907864956,-798.17,0.00020821,2]
[373213593,1752907864966,-725.13,0.00020821,2]
[373213594,1752907864976,-1220.62,0.00020821,2]
[373213595,1752907864985,-965.98,0.00020821,2]
[373213596,1752907864995,-480.0,0.00020821,2]
[373213597,1752907865005,-7391.1,0.00020821,2]
[373213598,1752907865015,-561.57,0.00020821,2]
[373213599,1752907865024,-996.17,0.00020821,2]
[373213600,1752907865034,-875.35,0.00020821,2]
[373213601,1752907865043,-480.0,0.00020821,2]
[373213602,1752907865053,-8079.32,0.00020822,2]
[373213604,1752907865062,-150.0,0.0002083,2]
[373213605,1752907865071,-266.72955252,0.00020839,2]
[373213606,1752907865081,-150.0,0.0002084,2]
[373213607,1752907865090,-28709.6078943,0.0002085,2]
[373213608,1752907865099,-28477.3355017,0.0002085,2]
[373213609,1752907865109,-2761.9096447,0.0002085,2]
[373213610,1752907865118,-150.0,0.00020852,2]
[373213611,1752907865128,-235.77,0.00020853,2]
[373213612,1752907865138,-150.0,0.00020863,2]
[373213613,1752907865147,-80444.21004342,0.00020864,7]
[373213614,1752907865156,-152.57380432,0.00020865,2]
[373213615,1752907865165,-256.54713356,0.00020868,2]
[373213616,1752907865175,-3073.85,0.000209,2]
[373213617,1752907865185,-585.7,0.000209,2]
[373213619,1752907865194,-6436.09,0.000209,2]
[373213621,1752907865204,-944.49,0.000209,2]
[373213623,1752907865213,-910.14,0.000209,2]
[373213625,1752907865224,-303.87,0.000209,2]
[373213627,1752907865234,-728.6,0.000209,2]
[373213629,1752907865243,-378.0,0.000209,2]
[373213631,1752907865252,-773.0,0.000209,2]
[373213633,1752907865262,-210.82967408,0.000209,7]
[373213635,1752907865271,-314.7242244,0.000209,2]
[373213637,1752907865281,-476.80070012,0.000209,7]
[373213639,1752907865290,-239.0,0.000209,2]
[373213641,1752907865300,-507.0,0.000209,8]
[373213643,1752907865310,-2062.65983,0.0002091,2]
[373213645,1752907865319,-25000.0,0.00020911,2]
[373213646,1752907865329,-151.96,0.00020922,2]
[373213648,1752907865339,-1201.35,0.00020931,2]
[373213651,1752907865349,-654.73,0.00020931,2]
[373213653,1752907865358,-480.0,0.00020931,2]
[373213654,1752907865368,-480.0,0.00020931,2]
[373213656,1752907865377,-597.85,0.00020931,2]
[373213658,1752907865387,-562.6,0.00020931,2]
[373213660,1752907865396,-494.6,0.00020931,2]
[373213663,1752907865411,-801.31,0.00020931,2]
[373213665,1752907865421,-614.38,0.00020931,2]
[373213667,1752907865431,-370.85690925,0.00020931,2]
[373213669,1752907865440,-565.24,0.00020931,2]
[373213671,1752907865450,-480.0,0.00020931,2]
[373213673,1752907865459,-1259.57,0.00020931,2]
[373213675,1752907865468,-480.0,0.00020931,2]
[373213677,1752907865477,-921.82,0.00020931,2]
[373213679,1752907865486,-480.0,0.00020931,2]
[373213681,1752907865495,-573.09,0.00020931,2]
[373213682,1752907865505,-1365.62,0.00020931,2]
[373213684,1752907865514,-577.37,0.00020931,2]
[373213686,1752907865524,-827.19,0.00020931,2]
[373213688,1752907865534,-581.07,0.00020931,2]
[373213690,1752907865543,-4441.88,0.00020931,2]
[373213692,1752907865552,-637.96,0.00020931,2]
[373213694,1752907865561,-584.34,0.00020931,2]
[373213696,1752907865571,-566.64,0.00020931,2]
[373213698,1752907865580,-791.99,0.00020931,2]
[373213700,1752907865589,-897.36,0.00020931,2]
[373213703,1752907865599,-1259.05,0.00020931,2]
[373213705,1752907865608,-1164.26,0.00020931,2]
[373213707,1752907865619,-480.0,0.00020931,2]
[373213709,1752907865628,-1795.43,0.00020931,2]
[373213711,1752907865638,-614.66774152,0.00020931,2]
[373213713,1752907865647,-669.7,0.00020931,2]
[373213715,1752907865656,-540.38,0.00020931,2]
[373213717,1752907865665,-1011.37,0.00020931,2]
[373213718,1752907865675,-480.0,0.00020931,2]
[373213719,1752907865684,-480.0,0.00020931,2]
[373213720,1752907865694,-632.89,0.00020931,2]
[373213721,1752907865703,-1288.17,0.00020931,2]
[373213722,1752907865712,-835.27,0.00020931,2]
[373213723,1752907865721,-631.07,0.00020931,2]
[373213724,1752907865731,-536.6,0.00020931,2]
[373213725,1752907865740,-480.0,0.00020931,2]
[373213726,1752907865749,-480.0,0.00020931,2]
[373213728,1752907865759,-480.0,0.00020931,2]
[373213730,1752907865768,-571.22,0.00020931,2]
[373213732,1752907865777,-480.0,0.00020931,2]
[373213734,1752907865786,-499.34,0.00020931,2]
[373213736,1752907865796,-480.0,0.00020931,2]
[373213738,1752907865810,-615.64,0.00020931,2]
[373213740,1752907865820,-480.0,0.00020931,2]
[373213742,1752907865829,-507.11,0.00020931,2]
[373213744,1752907865838,-1223.95,0.00020931,2]
[373213746,1752907865847,-798.17,0.00020931,2]
[373213748,1752907865857,-725.13,0.00020931,2]
[373213750,1752907865867,-1220.62,0.00020931,2]
[373213752,1752907865876,-965.98,0.00020931,2]
[373213754,1752907865886,-416.91479002,0.00020931,2]
[373213756,1752907865895,-7391.1,0.00020931,2]
[373213757,1752907865904,-561.57,0.00020931,2]
[373213758,1752907865914,-996.17,0.00020931,2]
[373213759,1752907865924,-875.35,0.00020931,2]
[373213760,1752907865933,-480.0,0.00020931,2]
[373213761,1752907865942,-25000.0,0.00020943,2]
[373213762,1752907865952,-150.0,0.00020949,2]
[373213764,1752907865961,-155.1,0.00020951,2]
[373213765,1752907865970,-5000.0,0.00020951,2]
[373213766,1752907865979,-2501.21,0.00020993,2]
[373213767,1752907865988,-94783.18456427,0.00021,2]
[373213768,1752907865997,-20000.0,0.00021,2]
[373213769,1752907866007,-24203.04219125,0.00021,7]
[373213771,1752907866016,-1164.61219862,0.00021,2]
[373213772,1752907866025,-192.21649301,0.00021,2]
[373213773,1752907866034,-8216.07959911,0.00021,9]
[373213774,1752907866043,-1000.0,0.00021,2]
[373213775,1752907866053,-2000.0,0.00021,2]
[373213776,1752907866063,-1237.51903245,0.00021,15]
[373213778,1752907866073,-200.0,0.00021,2]
[373213779,1752907866083,-2846.0,0.00021,2]
[373213780,1752907866092,-162.0,0.00021,3]
[373213781,1752907866102,-162.0,0.00021,3]
[373213782,1752907866112,-164.07,0.00021,3]
[373213784,1752907866122,-211.0,0.00021,2]
[373213785,1752907866132,-5868.31132802,0.00021,2]
[373213786,1752907866142,-476.80070012,0.00021,7]
[373213787,1752907866152,-4000.0,0.00021,4]
[373213789,1752907866162,-565.757373,0.00021,2]
[373213791,1752907866172,-674.0,0.00021017,2]
[373213793,1752907866182,-540.0,0.00021017,2]
[373213795,1752907866191,-2689.0,0.00021017,2]
[373213798,1752907866203,-500.0,0.00021018,2]
[373213800,1752907866213,-1201.35,0.00021041,2]
[373213802,1752907866224,-654.73,0.00021041,2]
[373213804,1752907866238,-480.0,0.00021041,2]
[373213806,1752907866248,-480.0,0.00021041,2]
[373213808,1752907866259,-597.85,0.00021041,2]
[373213810,1752907866270,-562.6,0.00021041,2]
[373213812,1752907866281,-494.6,0.00021041,2]
[373213814,1752907866292,-801.31,0.00021041,2]
[373213816,1752907866302,-614.38,0.00021041,2]
[373213818,1752907866314,-565.24,0.00021041,2]
[373213820,1752907866324,-480.0,0.00021041,2]
[373213822,1752907866333,-1259.57,0.00021041,2]
[373213824,1752907866343,-426.14937434,0.00021041,2]
[373213826,1752907866354,-921.82,0.00021041,2]
[373213828,1752907866364,-212.26203206,0.00021041,2]
[373213830,1752907866374,-573.09,0.00021041,2]
[373213832,1752907866383,-1365.62,0.00021041,2]
[373213835,1752907866394,-577.37,0.00021041,2]
[373213837,1752907866404,-827.19,0.00021041,2]
[373213839,1752907866414,-581.07,0.00021041,2]
[373213841,1752907866424,-4441.88,0.00021041,2]
[373213843,1752907866435,-637.96,0.00021041,2]
[373213845,1752907866445,-584.34,0.00021041,2]
[373213847,1752907866457,-566.64,0.00021041,2]
[373213849,1752907866467,-791.99,0.00021041,2]
[373213851,1752907866477,-897.36,0.00021041,2]
[373213853,1752907866487,-1259.05,0.00021041,2]
[373213855,1752907866498,-1164.26,0.00021041,2]
[373213857,1752907866509,-480.0,0.00021041,2]
[373213859,1752907866519,-1795.43,0.00021041,2]
[373213861,1752907866529,-669.7,0.00021041,2]
[373213864,1752907866540,-540.38,0.00021041,2]
[373213866,1752907866550,-1011.37,0.00021041,2]
[373213868,1752907866561,-480.0,0.00021041,2]
[373213870,1752907866571,-480.0,0.00021041,2]
[373213872,1752907866582,-632.89,0.00021041,2]
[373213874,1752907866592,-1288.17,0.00021041,2]
[373213876,1752907866602,-835.27,0.00021041,2]
[373213878,1752907866612,-631.07,0.00021041,2]
[373213880,1752907866622,-536.6,0.00021041,2]
[373213882,1752907866633,-385.65426351,0.00021041,2]
[373213884,1752907866643,-480.0,0.00021041,2]
[373213886,1752907866653,-606.80893264,0.00021041,2]
[373213888,1752907866663,-571.22,0.00021041,2]
[373213890,1752907866674,-480.0,0.00021041,2]
[373213891,1752907866684,-499.34,0.00021041,2]
[373213892,1752907866695,-480.0,0.00021041,2]
[373213894,1752907866718,-615.64,0.00021041,2]
[373213895,1752907866740,-480.0,0.00021041,2]
[373213896,1752907866761,-507.11,0.00021041,2]
[373213897,1752907866772,-1223.95,0.00021041,2]
[373213898,1752907866782,-798.17,0.00021041,2]
[373213899,1752907866792,-725.13,0.00021041,2]
[373213900,1752907866802,-1220.62,0.00021041,2]
[373213901,1752907866812,-965.98,0.00021041,2]
[373213902,1752907866822,-1682.8380183,0.00021041,2]
[373214224,1752908195456,155.1,0.00013699,2]
[373214347,1752908658839,1986.1,0.0002501,120]
[373214349,1752908705624,1566.0,0.00023,30]
[373214355,1752908807172,-208.61981322,0.00017197,2]
[373214360,1752908947982,-791.38018678,0.00017197,2]
[373214381,1752909031802,-151.0,0.00017527,2]
[373214383,1752909031811,-1083.0,0.00017538,2]
[373214384,1752909031821,-1000.0,0.0001763,2]
[373214385,1752909031832,-150.0,0.00017834,2]
[373214386,1752909031842,-180.63,0.00017899,2]
[373214387,1752909031851,-1000.0,0.00017944,2]
[373214388,1752909031862,-150.0,0.00017949,2]
[373214389,1752909031872,-150.0,0.0001795,2]
[373214390,1752909031882,-150.0,0.00017986,2]
[373214391,1752909031892,-150.0,0.00018019,2]
[373214392,1752909031902,-150.0,0.00018031,2]
[373214393,1752909031911,-150.0,0.00018098,2]
[373214394,1752909031921,-150.0,0.00018128,2]
[373214395,1752909031930,-150.0,0.00018139,2]
[373214396,1752909031939,-150.0,0.00018162,2]
[373214397,1752909031949,-150.0,0.00018166,2]
[373214398,1752909031959,-150.0,0.00018227,2]
[373214399,1752909031969,-192.99,0.00018329,2]
[373214400,1752909031979,-150.0,0.00018341,2]
[373214401,1752909031988,-232.0,0.0001842,2]
[373214402,1752909031998,-150.0,0.00018428,2]
[373214403,1752909032008,-167.21,0.00018431,2]
[373214404,1752909032017,-150.0,0.00018462,2]
[373214405,1752909032027,-150.0,0.00018481,2]
[373214406,1752909032037,-150.0,0.00018492,2]
[373214407,1752909032046,-1200.0,0.00018529,2]
[373214408,1752909032055,-300.0,0.00018529,2]
[373214409,1752909032066,-207.4,0.00018529,2]
[373214410,1752909032075,-150.0,0.0001853,2]
[373214411,1752909032084,-232.0,0.0001866,2]
[373214412,1752909032096,-150.0,0.00018804,2]
[373214413,1752909032106,-232.0,0.000189,2]
[373214414,1752909032115,-250.0,0.00018917,2]
[373214415,1752909032125,-150.0,0.00018917,2]
[373214416,1752909032134,-300.0,0.00018917,2]
[373214417,1752909032144,-150.0,0.00018981,2]
[373214418,1752909032154,-509.65,0.00019,2]
[373214419,1752909032164,-192.99,0.00019016,2]
[373214420,1752909032173,-2500.0,0.00019078,2]
[373214421,1752909032183,-232.0,0.0001914,2]
[373214422,1752909032192,-448.23352142,0.00019151,2]
[373214423,1752909032202,-480.0,0.00019178,2]
[373214424,1752909032212,-199.26,0.00019178,2]
[373214425,1752909032221,-476.42934187,0.00019178,2]
[373214426,1752909032231,-515.40815464,0.00019178,2]
[373214428,1752909032241,-480.0,0.00019178,2]
[373214430,1752909032251,-521.02174592,0.00019178,2]
[373214431,1752909032260,-489.21396425,0.00019178,2]
[373214433,1752909032270,-499.39733788,0.00019178,2]
[373214435,1752909032280,-484.71398242,0.00019178,2]
[373214437,1752909032289,-500.99,0.00019178,2]
[373214439,1752909032299,-480.0,0.00019178,2]
[373214441,1752909032308,-483.43162778,0.00019178,2]
[373214443,1752909032318,-476.87464632,0.00019178,2]
[373214445,1752909032329,-181.51119024,0.00019178,2]
[373214447,1752909032339,-567.7,0.00019178,2]
[373214448,1752909032348,-382.24700736,0.00019178,2]
[373214449,1752909032357,-480.0,0.00019178,2]
[373214451,1752909032367,-480.0,0.00019178,2]
[373214453,1752909032376,-480.0,0.00019178,2]
[373214455,1752909032385,-480.0,0.00019178,2]
[373214456,1752909032394,-598.22307671,0.00019178,2]
[373214458,1752909032404,-480.0,0.00019178,2]
[373214460,1752909032413,-480.0,0.00019178,2]
[373214461,1752909032423,-235.47440319,0.00019178,2]
[373214462,1752909032447,-206.16998035,0.00019178,2]
[373214463,1752909032456,-480.0,0.00019178,2]
[373214464,1752909032465,-480.0,0.00019178,2]
[373214466,1752909032475,-138.83001965,0.00019178,2]
[373214468,1752909032486,-285.05986951,0.00019178,2]
[373214470,1752909032495,-107.09272262,0.00019178,2]
[373214472,1752909032506,-372.90727738,0.00019178,2]
[373214474,1752909032515,-118.59272262,0.00019178,2]
[373214515,1752909032916,-361.40727738,0.00019178,2]
[373214517,1752909032927,-480.0,0.00019178,2]
[373214519,1752909032936,-581.07,0.00019178,2]
[373214521,1752909032946,-480.0,0.00019178,2]
[373214523,1752909032955,-69.04449578,0.00019178,2]
[373214525,1752909032966,-410.95550422,0.00019178,2]
[373214527,1752909032976,-628.11,0.00019178,2]
[373214529,1752909032985,-480.0,0.00019178,2]
[373214531,1752909032995,-480.0,0.00019178,2]
[373214533,1752909033003,-89.86143065,0.00019178,2]
[373214535,1752909033016,-4352.01856935,0.00019178,2]
[373214537,1752909033026,-1011.37,0.00019178,2]
[373214539,1752909033036,-1953.2,0.00019178,2]
[373214541,1752909033045,-480.0,0.00019178,2]
[373214543,1752909033055,-631.07,0.00019178,2]
[373214545,1752909033065,-480.0,0.00019178,2]
[373214547,1752909033075,-480.0,0.00019178,2]
[373214549,1752909033085,-480.0,0.00019178,2]
[373214551,1752909033095,-725.13,0.00019178,2]
[373214553,1752909033105,-480.0,0.00019178,2]
[373214555,1752909033114,-568.26,0.00019178,2]
[373214557,1752909033124,-2076.63,0.00019178,2]
[373214559,1752909033134,-480.0,0.00019178,2]
[373214561,1752909033144,-480.0,0.00019178,2]
[373214563,1752909033153,-480.0,0.00019178,2]
[373214565,1752909033163,-214.35721233,0.00019178,2]
[373214567,1752909033173,-199.95158662,0.00019178,2]
[373214569,1752909033184,-280.04841338,0.00019178,2]
[373214571,1752909033193,-480.0,0.00019178,2]
[373214573,1752909033203,-480.0,0.00019178,2]
[373214575,1752909033212,-480.0,0.00019178,2]
[373214577,1752909033222,-480.0,0.00019178,2]
[373214579,1752909033231,-480.0,0.00019178,2]
[373214581,1752909033241,-480.0,0.00019178,2]
[373214583,1752909033250,-151.0,0.00019178,2]
[373214584,1752909033259,-210.67,0.00019178,2]
[373214586,1752909033269,-151.96,0.00019178,2]
[373214588,1752909033278,-3526.25906854,0.00019178,2]
[373214968,1752909037768,-902.7499995,0.00019178,2]
[373214969,1752909037976,-10762.47923066,0.00019178,2]
[373214970,1752909037986,-150.0,0.00019199,2]
[373214971,1752909037996,-150.0,0.0001925,2]
[373214972,1752909038006,-150.0,0.00019272,2]
[373214973,1752909038015,-1000.0,0.0001928,2]
[373214974,1752909038025,-2500.0,0.0001928,2]
[373214975,1752909038035,-476.80070012,0.00019285,2]
[373214976,1752909038044,-210.82967408,0.00019285,2]
[373214977,1752909038054,-839.16344753,0.00019285,2]
[373214978,1752909038064,-480.0,0.00019287,2]
[373214979,1752909038074,-191.42418838,0.00019287,2]
[373214980,1752909038083,-480.0,0.00019287,2]
[373214981,1752909038092,-480.0,0.00019287,2]
[373214982,1752909038102,-480.0,0.00019287,2]
[373214983,1752909038112,-480.0,0.00019287,2]
[373214984,1752909038122,-496.10741327,0.00019287,2]
[373214986,1752909038131,-480.0,0.00019287,2]
[373214988,1752909038141,-480.0,0.00019287,2]
[373214990,1752909038151,-480.0,0.00019287,2]
[373214992,1752909038160,-508.27,0.00019287,2]
[373214994,1752909038170,-581.07,0.00019287,2]
[373214996,1752909038179,-230.20063863,0.00019287,2]
[373214998,1752909038189,-480.0,0.00019287,2]
[373215000,1752909038198,-628.11,0.00019287,2]
[373215002,1752909038208,-480.0,0.00019287,2]
[373215004,1752909038217,-480.0,0.00019287,2]
[373215006,1752909038227,-4441.88,0.00019287,2]
[373215008,1752909038236,-1011.37,0.00019287,2]
[373215010,1752909038246,-1953.2,0.00019287,2]
[373215012,1752909038256,-480.0,0.00019287,2]
[373215014,1752909038265,-631.07,0.00019287,2]
[373215016,1752909038275,-480.0,0.00019287,2]
[373215018,1752909038284,-480.0,0.00019287,2]
[373215020,1752909038294,-480.0,0.00019287,2]
[373215022,1752909038304,-480.0,0.00019287,2]
[373215024,1752909038316,-725.13,0.00019287,2]
[373215026,1752909038326,-568.26,0.00019287,2]
[373215028,1752909038335,-2076.63,0.00019287,2]
[373215030,1752909038345,-480.0,0.00019287,2]
[373215032,1752909038355,-480.0,0.00019287,2]
[373215034,1752909038365,-480.0,0.00019287,2]
[373215036,1752909038374,-480.0,0.00019287,2]
[373215038,1752909038384,-480.0,0.00019287,2]
[373215040,1752909038394,-480.0,0.00019287,2]
[373215042,1752909038403,-480.0,0.00019287,2]
[373215044,1752909038413,-480.0,0.00019287,2]
[373215046,1752909038423,-480.0,0.00019287,2]
[373215048,1752909038432,-1999.904,0.00019287,2]
[373215050,1752909038443,-463.119,0.00019287,2]
[373215052,1752909038453,-5281.48019529,0.00019297,2]
[373215054,1752909038463,-150.0,0.00019315,2]
[373215056,1752909038473,-1215.72616101,0.00019371,2]
[373215058,1752909038485,-232.0,0.0001938,2]
[373215060,1752909038495,-691.03103435,0.00019387,2]
[373215062,1752909038505,-4179.10799074,0.00019394,2]
[373215064,1752909038515,-330.38337568,0.00019396,2]
[373215066,1752909038525,-480.0,0.00019397,2]
[373215068,1752909038535,-549.39889184,0.00019397,2]
[373215070,1752909038544,-480.0,0.00019397,2]
[373215072,1752909038553,-480.0,0.00019397,2]
[373215074,1752909038565,-480.0,0.00019397,2]
[373215076,1752909038574,-480.0,0.00019397,2]
[373215078,1752909038584,-480.0,0.00019397,2]
[373215080,1752909038594,-480.0,0.00019397,2]
[373215082,1752909038605,-581.07,0.00019397,2]
[373215084,1752909038614,-480.0,0.00019397,2]
[373215086,1752909038623,-628.11,0.00019397,2]
[373215088,1752909038633,-480.0,0.00019397,2]
[373215090,1752909038642,-480.0,0.00019397,2]
[373215092,1752909038652,-4441.88,0.00019397,2]
[373215094,1752909038662,-1011.37,0.00019397,2]
[373215096,1752909038671,-1953.2,0.00019397,2]
[373215098,1752909038681,-480.0,0.00019397,2]
[373215099,1752909038691,-631.07,0.00019397,2]
[373215100,1752909038701,-415.06529108,0.00019397,2]
[373215101,1752909038714,-64.93470892,0.00019397,2]
[373215102,1752909038723,-480.0,0.00019397,2]
[373215103,1752909038733,-480.0,0.00019397,2]
[373215104,1752909038743,-480.0,0.00019397,2]
[373215105,1752909038752,-725.13,0.00019397,2]
[373215106,1752909038762,-568.26,0.00019397,2]
[373215107,1752909038771,-2076.63,0.00019397,2]
[373215108,1752909038781,-480.0,0.00019397,2]
[373215109,1752909038793,-480.0,0.00019397,2]
[373215111,1752909038803,-480.0,0.00019397,2]
[373215113,1752909038813,-174.12,0.00019397,2]
[373215115,1752909038823,-321.54621735,0.00019397,2]
[373215117,1752909038833,-480.0,0.00019397,2]
[373215119,1752909038843,-480.0,0.00019397,2]
[373215121,1752909038852,-480.0,0.00019397,2]
[373215123,1752909038861,-480.0,0.00019397,2]
[373215125,1752909038871,-4179.10799074,0.00019398,2]
[373215128,1752909038882,-2223.49742676,0.000194,2]
[373215130,1752909038891,-349.65506123,0.00019401,2]
[373215132,1752909038903,-1873.84236553,0.00019401,2]
[373215134,1752909038912,-200.0,0.00019412,2]
[373215136,1752909038922,-353.55349256,0.0001943,2]
[373215138,1752909038931,-200.0,0.00019433,2]
[373215140,1752909038940,-1798.16398781,0.00019435,2]
[373215246,1752909039947,-425.33343895,0.00019435,2]
[373215248,1752909039958,-166.01656105,0.00019438,2]
[373215280,1752909040275,-525.0144733,0.00019438,2]
[373215282,1752909040285,-150.0,0.0001944,2]
[373215284,1752909040295,-200.0,0.00019446,2]